Cogmind - Beta 16.1 @@@ ROGUE MODE // 2026.02.27 @ 21:31:09 Player: APerTAS Result: Destroyed by DX-SYA(R) with Subdweller Beam Cannon Performance ------------- Evolutions (0) 0 Regions Visited (3) 600 Robots Destroyed (1) 5 Value Destroyed (40) 40 Prototype IDs (0) 0 Alien Tech Used (0) 0 Bonus (0) 0 TOTAL SCORE: 645 Bonus ------- None Cogmind --------- Core Integrity 0/250 Matter 296/300 Energy 100/100 System Corruption 0% Temperature Cool (9) Movement Treading (160) Location -10/Subcaves Parts ------- > --- POWER (1) -------- (None) > --- PROPULSION (2) --- Spiked Treads > --- UTILITY (2) ------ Makeshift Hacking Suite > --- WEAPON (2) ------- Subdweller Laser Battle Rifle > --- INVENTORY (5) ---- Subdweller Monowheel Scrap Shield Fragment (26) Scrap Shield Fragment (21) Peak State ------------ > --- POWER ------------ Subdweller Power Source > --- PROPULSION ------- Spiked Treads > --- UTILITY ---------- Makeshift Hacking Suite > --- WEAPON ----------- Subdweller Laser Battle Rifle > --- INVENTORY -------- Subdweller Monowheel Scrap Shield Fragment Scrap Shield Fragment [Rating: 12] Favorites ----------- Power Subdweller Power Source Engine Subdweller Power Source Propulsion Spiked Treads Treads Spiked Treads Wheel Subdweller Monowheel Utility Makeshift Hacking Suite Hackware Makeshift Hacking Suite Weapon Subdweller Laser Energy Gun Subdweller Laser Ballistic Gun Battle Rifle Build | -11 -10 -10 -10 ------- Run | Yrd Mat Min Sub Slots Evolved . | . . . . Power . | . . . . Propulsion . | . . . . Utility . | . . . . Weapon . | . . . . Parts Attached 6 | . . . 6 Power 1 | . . . 1 Engine 1 | . . . 1 Core . | . . . . Reactor . | . . . . Propulsion 2 | . . . 2 Treads 1 | . . . 1 Leg . | . . . . Wheel 1 | . . . 1 Hover . | . . . . Flight . | . . . . Utility 1 | . . . 1 Device . | . . . . Storage . | . . . . Processor . | . . . . Hackware 1 | . . . 1 Protection . | . . . . Artifact . | . . . . Weapon 2 | . . . 2 Energy Gun 1 | . . . 1 Energy Cannon . | . . . . Ballistic Gun 1 | . . . 1 Ballistic Cannon . | . . . . Launcher . | . . . . Special Weapon . | . . . . Impact Weapon . | . . . . Slashing Weapon . | . . . . Piercing Weapon . | . . . . Special Melee Weapon . | . . . . Unidentified Prototypes . | . . . . Parts Lost 1 | . . . 1 Power 1 | . . . 1 Propulsion . | . . . . Utility . | . . . . Weapon . | . . . . Highest Loss Streak 1 | . . . 1 To Critical Strikes . | . . . . Average Backups . | . . . . Power . | . . . . Propulsion . | . . . . Utility . | . . . . Weapon . | . . . . Tool/Special . | . . . . Unused Backups . | . . . . Power . | . . . . Propulsion . | . . . . Utility . | . . . . Weapon . | . . . . Tool/Special . | . . . . Average Slot Usage (%) 16 | . . . 36 Engine 2 | . . . 6 Treads 3 | . . . 7 Hackware 2 | . . . 4 Energy Gun 4 | . . . 10 Ballistic Gun 2 | . . . 6 Peak Build Rating 12 | . . . 12 Average Rating 2 | . . . 6 On Entrance . | . . . . Avg Prop Armor Cover (%) . | . . . . Naked Turns 117 | . 46 53 18 Heaviest Build 11 | . . . 11 Greatest Support 20 | 3 3 3 20 Greatest Overweight (x) 1 | . . . 1 Average Overweight (x) . | . . . . Largest Inventory Capacity 5 | 5 5 5 5 Average Capacity 5 | 5 5 5 5 Most Carried 3 | . . . 3 Average Carried . | . . . 1 Final Capacity 5 | 5 5 5 5 Final Carried 3 | . . . 3 Class Distribution -------------------- 62% | Mutant 37% | Derelict-Mutant Dominant Class ---------------- Mutant | -10/Materials Mutant | -10/Mines Derelict-Mutant | -10/Subcaves Resources | -11 -10 -10 -10 ----------- Run | Yrd Mat Min Sub Matter Collected 249 | 101 . 29 119 Remotely . | . . . . Salvage Created 42 | . . . 42 Parts 1 | . . . 1 Haulers Intercepted . | . . . . Recyclers Shooed . | . . . . Parts Field Recycled . | . . . . Retrieved Matter . | . . . . Parts Self-Destructed . | . . . . Prevented . | . . . . Parts Restored . | . . . . Kills | -11 -10 -10 -10 ------- Run | Yrd Mat Min Sub Combat Hostiles Destroyed 1 | . . . 1 Guns 1 | . . . 1 Classes Destroyed 1 | . . . 1 Subdweller 1 | . . . 1 Best Kill Streak 1 | . . . 1 Combat Bots Only 1 | . . . 1 Max Kills in Single Turn 1 | . . . 1 Gunslinging . | . . . . Exploded . | . . . . Melee . | . . . . Uniques/NPCs Destroyed . | . . . . Combat | -11 -10 -10 -10 -------- Run | Yrd Mat Min Sub Hostile Shots Fired 20 | . 7 1 12 Missed 6 | . 3 . 3 Hits 14 | . 4 1 9 Projectile 14 | . 4 1 9 Damage Taken 304 | . 70 10 224 Core 270 | . 70 10 190 Absorbed by Shields . | . . . . Core Remaining (%) 100 | 100 . . . Volleys Fired 8 | . . . 8 Largest 2 | . . . 2 Hottest 85 | . . . 85 Shots Fired 11 | . . . 11 Gun 11 | . . . 11 Cannon . | . . . . Launcher . | . . . . Special . | . . . . Kinetic 3 | . . . 3 Thermal 8 | . . . 8 Explosive . | . . . . Electromagnetic . | . . . . Robot Hit Streak 5 | . . . 5 Robot Miss Streak 1 | . . . 1 Penetration Max . | . . . . Secondary Targets . | . . . . Shots Hit Robots 9 | . . . 9 Core Hits 3 | . . . 3 Critical Kills . | . . . . Critical Parts Destroyed . | . . . . Critical Strikes . | . . . . Melee Attacks . | . . . . Impact . | . . . . Slashing . | . . . . Piercing . | . . . . Sneak Attacks . | . . . . Combat Hostiles . | . . . . Follow-up Attacks . | . . . . Damage Inflicted 126 | . 12 . 114 Guns 114 | . . . 114 Cannons . | . . . . Explosions . | . . . . Melee . | . . . . Ramming 12 | . 12 . . Kinetic 10 | . . . 10 Thermal 104 | . . . 104 Explosive . | . . . . Electromagnetic . | . . . . Impact . | . . . . Slashing . | . . . . Piercing . | . . . . Highest Corruption . | . . . . Average Corruption . | . . . . Corruption Purged . | . . . . Corruption Blocked . | . . . . Overload Shots . | . . . . Overflow Damage . | . . . . Projectiles . | . . . . Explosions . | . . . . Melee . | . . . . Knockbacks . | . . . . Impact . | . . . . Kinetic . | . . . . Secondary . | . . . . Self-Inflicted Damage 5 | . 5 . . Shots . | . . . . Rammed 3 | . 3 . . Targets Rammed 3 | . 3 . . Kicked . | . . . . Crushed . | . . . . Highest Temperature 13 | . . . 13 Average Temperature 9 | . . . 9 Received Heat Transfer 102 | . 33 . 69 Siege Activations . | . . . . Martial Activations . | . . . . Shielding Activations . | . . . . Robots Disrupted . | . . . . Combat Hostiles . | . . . . Robots Corrupted . | . . . . Combat Hostiles . | . . . . Parts Fried . | . . . . Impact Corruptions . | . . . . Robots Melted . | . . . . Combat Hostiles . | . . . . Parts Melted . | . . . . Heat Transferred 125 | . . . 125 Parts Sabotaged . | . . . . Parts Stolen . | . . . . Parts Stripped . | . . . . Power Chain Reactions . | . . . . Alert | -11 -10 -10 -10 ------- Run | Yrd Mat Min Sub Maximum Alert Level . | . . . . Low Security (%) 100 | 100 100 100 . Level 1 . | . . . . Level 2 . | . . . . Level 3 . | . . . . Level 4 . | . . . . Level 5 . | . . . . High Security . | . . . . Max Security . | . . . . Peak Influence 30 | . . 30 . Initial . | . . . . Average 6 | . . 14 . Influence Increases 30 | . . 30 . Lose Combat Pursuer 30 | . . 30 . Influence Decreases 30 | . . 10 20 Entered New Map 11 | . . . 11 Time Decay 19 | . . 10 9 Squads Dispatched . | . . . . Investigation . | . . . . Extermination . | . . . . Reinforcement . | . . . . Assault . | . . . . Garrison . | . . . . Intercept . | . . . . Searches Triggered . | . . . . Construction Impeded . | . . . . Haulers Reinforced . | . . . . Active Scanning Responses . | . . . . Cargo Convoy Interrupts . | . . . . Stealth | -11 -10 -10 -10 --------- Run | Yrd Mat Min Sub Distress Signals . | . . . . Communications Jammed . | . . . . Distress Signals . | . . . . Times Spotted 8 | . 2 4 2 Peak Tracking Total 3 | . 2 3 1 Tactical Retreats 1 | . . 1 . Traps | -11 -10 -10 -10 ------- Run | Yrd Mat Min Sub Traps Triggered . | . . . . Indirectly . | . . . . Trap Hack Attempts . | . . . . Triggered . | . . . . Disarmed . | . . . . Reprogrammed . | . . . . Reused . | . . . . Traps Extracted . | . . . . Installed . | . . . . Triggered . | . . . . Machines | -11 -10 -10 -10 ---------- Run | Yrd Mat Min Sub Machines Disabled . | . . . . Max in Single Turn . | . . . . Machines Repaired . | . . . . Machines Dismantled . | . . . . Machines Sabotaged . | . . . . Overloaded Fab Kills . | . . . . Hacking | -11 -10 -10 -10 --------- Run | Yrd Mat Min Sub Machines Accessed 1 | . 1 . . Terminals 1 | . 1 . . Fabricators . | . . . . Repair Stations . | . . . . Recycling Units . | . . . . Scanalyzers . | . . . . Garrison Access . | . . . . Total Hacks 3 | . 3 . . Successful 1 | . 1 . . Failed 2 | . 2 . . Catastrophic . | . . . . Database Lockouts . | . . . . Manual 1 | . 1 . . Terminals 3 | . 3 . . Fabricators . | . . . . Repair Stations . | . . . . Recycling Units . | . . . . Scanalyzers . | . . . . Garrison Access . | . . . . Terminal Hacks . | . . . . Fabricator Hacks . | . . . . Repair Station Hacks . | . . . . Recycling Unit Hacks . | . . . . Scanalyzer . | . . . . Garrison Access Hacks . | . . . . Unauthorized Hacks 1 | . 1 . . Terminals 1 | . 1 . . Botnet 1 | . 1 . . Fabricators . | . . . . Repair Stations . | . . . . Recycling Units . | . . . . Scanalyzers . | . . . . Garrison Access . | . . . . Data Cores Recovered . | . . . . Used . | . . . . Hacking Detections 1 | . 1 . . Full Trace Events . | . . . . Feedback Events . | . . . . Feedback Blocked . | . . . . Robot Schematics Acquired . | . . . . Robots Built . | . . . . Authchips . | . . . . Time . | . . . . Total Robot Build Rating . | . . . . Part Schematics Acquired . | . . . . Parts Built . | . . . . Authchips . | . . . . Time . | . . . . Total Part Build Rating . | . . . . Part Studies Acquired . | . . . . Parts Repaired . | . . . . Time . | . . . . Parts Recycled . | . . . . Recycled Matter . | . . . . Retrieved Matter . | . . . . Retrieved Components . | . . . . Parts Scanalyzed . | . . . . Part Schematics Acquired . | . . . . Parts Damaged . | . . . . Bothacking | -11 -10 -10 -10 ------------ Run | Yrd Mat Min Sub Used RIF Installer . | . . . . Robots Hacked . | . . . . Non-combat . | . . . . Combat . | . . . . Robot Hacks Applied . | . . . . Relay Couplers Released . | . . . . Fabnet Peak Effective % . | . . . . Robots Rewired . | . . . . Allies Hacked . | . . . . Hacks Repelled . | . . . . Allies | -11 -10 -10 -10 -------- Run | Yrd Mat Min Sub Total Allies . | . . . . Largest Group . | . . . . Highest-Rated Group . | . . . . Highest-Rated Ally . | . . . . Total Orders . | . . . . Ally Attacks . | . . . . Total Damage . | . . . . Kills . | . . . . Allies Corrupted . | . . . . Allies Melted . | . . . . Intel | -11 -10 -10 -10 ------- Run | Yrd Mat Min Sub Active Infowar (turns) . | . . . . Robot Analysis Total . | . . . . Derelict Logs Recovered . | . . . . Drone Launches . | . . . . Drone Recoveries . | . . . . Exploration | -11 -10 -10 -10 ------------- Run | Yrd Mat Min Sub Turns Passed 192 | 9 46 53 84 Spaces Moved 265 | 18 85 106 56 Core 245 | 18 85 106 36 Treads 19 | . . . 19 Legs . | . . . . Wheels 1 | . . . 1 Hover . | . . . . Flight . | . . . . Fastest Speed 50 | 50 50 50 50 Average Speed 58 | 50 50 50 90 Slowest Speed 160 | 50 50 50 160 Overloaded Moves . | . . . . Propulsion Burnouts . | . . . . Robots Hopped . | . . . . Potential Cave-ins . | . . . . Cave-ins Triggered . | . . . . Exploration Rate (%) 13 | 3 21 28 3 Regions Visited 3 Branch Regions 2 Pre-discovered Areas . | . . . . Known Exits Taken . | . . . . Unknown Exits Taken 3 | 1 1 1 . Scrap Searched 4 | . . . 4 Spaces Dug . | . . . . Terrain Destroyed . | . . . . Melee . | . . . . Projectile . | . . . . AOE . | . . . . Terrain Rammed . | . . . . Walls Destroyed . | . . . . Machines Disabled . | . . . . Actions | -11 -10 -10 -10 --------- Run | Yrd Mat Min Sub Total 285 | 17 87 105 76 Wait 3 | . . . 3 Move 262 | 17 84 105 56 Hop . | . . . . Pick Up 2 | . . . 2 Fast Attach 6 | . . . 6 Attach . | . . . . Detach 1 | . . . 1 Swap . | . . . . Drop . | . . . . Fire 8 | . . . 8 Melee . | . . . . Ram 3 | . 3 . . Kick . | . . . . Crush . | . . . . Escape Stasis . | . . . . Rewire . | . . . . Trap . | . . . . Miscellaneous . | . . . . Route ------- -11/Scrapyard -10/Materials -10/Mines -10/Subcaves History --------- Turn | Location | Event 4 | -11/Scrapyard | Discovered new exit (range 13) 10 | -11/Scrapyard | Entered Materials 54 | -10/Materials | Discovered new exit (range 4) 56 | -10/Materials | Entered Mines 71 | -10/Mines | Met a Derelict bent on vengeance 80 | -10/Mines | Assembled infested the area 85 | -10/Mines | Assisted by a Guerilla fighting off Assembled 105 | -10/Mines | Discovered new exit (range 9) 109 | -10/Mines | Entered Subcaves 129 | -10/Subcaves | Core integrity fell below 50% 188 | -10/Subcaves | Core integrity fell below 20% 193 | -10/Subcaves | Destroyed by DX-SYA(R) with Subdweller Beam Cannon Last Messages --------------- 00143_ Acquired Spk. Treads. 00144_ Subatomizers dissect the Mak. Hacking Suite. 00146_ Acquired Scrap Shield Fragment. 00150_ Searching scrap... 00150_ Found Battle Rifle. 00150_ Found Sub. Power Source. 00150_ Found 31 Matter. 00151_ Acquired 20 matter. 00153_ Acquired Sub. Power Source. 00154_ Subatomizers dissect the Mak. Hacking Suite. 00156_ Acquired Battle Rifle. 00158_ Acquired 11 matter. 00164_ Acquired Mak. Hacking Suite. 00166_ Subatomizers dissect the Mak. Leg. 00169_ Searching scrap... 00169_ Found Battle Cannon. 00169_ Found 54 Matter. 00170_ Acquired 19 matter. 00188_ Subatomizers dissect the Mak. Leg. 00193_ Sub. Power Source destroyed. Map ----- +----------------------------------------------------+ | ???????????????????????????????????????? | | ???????????????????????????????????????? | | ???????????????????????????????????????? | | ???????????????????????????????????????? | | ???????????????????????????????????????? | | ???????????????????????????????????????? | | ???????????????????????????????????????? | | ???????????????????????????????????????? | | ???????????????????????????????????????? | | ???????????????????? ?????????????????? | | ???????????????????? ?????????????????? | | ????????????????##?? ?????????????????? | | ????????????????? ## ?????????????????? | | ????????????????? ??#??????????????? | | ????????????????? ###""?????????????? | | ?????????????????#""" """"" ??????????? | | ????????????????## """" #??????????? | | ????????????????? "? "" #???????????? | | ?????????????????# ?? #????????????? | | ????????????????## ### " ####?????????? | | ????????????????# # "" " ??????????? | | ????????????????## # " ## ##?????????? | | ??????????####?## " #?????????? | | ??????????# %### ## "### #?????????? | | ??????????#]!# #< ## " # #??????????? | | ??????????##= @ ## ## #??????????? | | ??????????# %##R ### ## ##?????????? | | ??????????# %## ## ##????????? | | ??????????###### ### #????????? | | ???????????????# ## ## #????????? | | ???????????????# ####### #????????? | | ???????????????# ????## #????????? | | ???????????????# # #????## ##????????? | | ???????????????### #????###?????????? | | ?????????????????? #????????????????? | | ?????????????????? ????????????????? | | ?????????????????? $ ???????????????? | | ??????????????????# # ??????????????? | | ??????????????????? ## ##?????????????? | | ??????????????????? ? ??????????????? | | ??????????????????? #?????????????????? | | ???????????????????? ??????????????????? | | ???????????????????????????????????????? | | ???????????????????????????????????????? | | ???????????????????????????????????????? | | ???????????????????????????????????????? | | ???????????????????????????????????????? | | ???????????????????????????????????????? | | ???????????????????????????????????????? | | ???????????????????????????????????????? | +----------------------------------------------------+ Best States ------------- Heat Dissipation 25 Energy Generation 15 Energy Capacity 200 Matter Stores 300 Matter Capacity 300 Sight Range 16 Terrain Scan Density 10 Evasion (%) 50 Recoil Reduction 1 Offensive Hacking 11 Item Schematics ----------------- None Robot Schematics ------------------ None Fabricated ------------ Nothing Repaired ---------- Nothing Studied --------- None Alien Tech Used ----------------- None Achievements -------------- None Challenges ------------ None Game ------ Seed RainbowCompositeDriveblaster Manual? 0 Play Time 00:03:28 Cumulative 59.6 hours Start 2026.02.27 @ 21:28:40 End 2026.02.27 @ 21:31:09 Sessions 1 Manual Loads 0 Difficulty Rogue Special Mode None Game No. 187 Rogue 187 Adventurer 0 Explorer 0 Win Type - Total 0 Types 0/0/0/0/0/0/0/0/0/0 Lore% 62 Gallery% 36 Achievement% 33 Wizard Run 0 Options --------- Layout 0 ASCII 0 Keyboard 0 Movement Arrows Keybinds 0 Fullscreen 1 Font 24/Terminus Map View 64x52 Zoom Use 0% Tactical HUD 1 Map Filters NONE Filters NONE Steam 1 RUN: 5d0a4e0e-f8b4-4fe3-862e-903f8fa34ded